Workbook

Sheet CSV
A1: Stations | B1: 9 | C1: Chines | D1: 5
A2: Station | B2: Chine | C2: X | D2: Y | E2: Z | F2: Break | G2: Colour
A3: 1 | B3: 1 | C3: 0 | D3: 0 | E3: 300 | F3: TRUE | G3: 5
A4: 1 | B4: 2 | C4: 0 | D4: 0 | E4: 300 | F4: TRUE | G4: 4
A5: 1 | B5: 3 | C5: 0 | D5: 0 | E5: 300 | F5: TRUE | G5: 3
A6: 1 | B6: 4 | C6: 0 | D6: 0 | E6: 300 | F6: TRUE | G6: 2
A7: 1 | B7: 5 | C7: 0 | D7: 0 | E7: 300 | F7: TRUE | G7: 1
A8: 2 | B8: 1 | C8: 280.4347826 | D8: 0 | E8: -75 | F8: TRUE | G8: 5
A9: 2 | B9: 2 | C9: 280.4347826 | D9: 0 | E9: -75 | F9: TRUE | G9: 4
A10: 2 | B10: 3 | C10: 280.4347826 | D10: 120.4364438 | E10: 247.9902802 | F10: FALSE | G10: 3
A11: 2 | B11: 4 | C11: 280.4347826 | D11: 60.96408318 | E11: 276.3592183 | F11: FALSE | G11: 2
A12: 2 | B12: 5 | C12: 280.4347826 | D12: 0 | E12: 276.3592183 | F12: FALSE | G12: 1
A13: 3 | B13: 1 | C13: 841.2108696 | D13: 0 | E13: -75 | F13: FALSE | G13: 5
A14: 3 | B14: 2 | C14: 841.2108696 | D14: 101.9859995 | E14: -75 | F14: FALSE | G14: 4
A15: 3 | B15: 3 | C15: 841.2108696 | D15: 271.7370918 | E15: 155.6109304 | F15: FALSE | G15: 3
A16: 3 | B16: 4 | C16: 841.2108696 | D16: 157.3591678 | E16: 234.3686047 | F16: FALSE | G16: 2
A17: 3 | B17: 5 | C17: 841.2108696 | D17: 0 | E17: 234.3686047 | F17: FALSE | G17: 1
A18: 4 | B18: 1 | C18: 1215.217391 | D18: 0 | E18: -75 | F18: FALSE | G18: 5
A19: 4 | B19: 2 | C19: 1215.217391 | D19: 150 | E19: -75 | F19: FALSE | G19: 4
A20: 4 | B20: 3 | C20: 1215.217391 | D20: 321.6535632 | E20: 103.8389696 | F20: FALSE | G20: 3
A21: 4 | B21: 4 | C21: 1215.217391 | D21: 202.7410208 | E21: 210.8358953 | F21: FALSE | G21: 2
A22: 4 | B22: 5 | C22: 1215.217391 | D22: 0 | E22: 210.8358953 | F22: FALSE | G22: 1
A23: 5 | B23: 1 | C23: 2150 | D23: 0 | E23: -75 | F23: FALSE | G23: 5
A24: 5 | B24: 2 | C24: 2150 | D24: 200 | E24: -75 | F24: FALSE | G24: 4
A25: 5 | B25: 3 | C25: 2150 | D25: 350 | E25: 25 | F25: FALSE | G25: 3
A26: 5 | B26: 4 | C26: 2150 | D26: 250 | E26: 175 | F26: FALSE | G26: 2
A27: 5 | B27: 5 | C27: 2150 | D27: 0 | E27: 175 | F27: FALSE | G27: 1
A28: 6 | B28: 1 | C28: 3084.782609 | D28: 0 | E28: -75 | F28: FALSE | G28: 5
A29: 6 | B29: 2 | C29: 3084.782609 | D29: 150 | E29: -75 | F29: FALSE | G29: 4
A30: 6 | B30: 3 | C30: 3084.782609 | D30: 321.6535632 | E30: 103.8389696 | F30: FALSE | G30: 3
A31: 6 | B31: 4 | C31: 3084.782609 | D31: 202.7410208 | E31: 210.8358953 | F31: FALSE | G31: 2
A32: 6 | B32: 5 | C32: 3084.782609 | D32: 0 | E32: 210.8358953 | F32: FALSE | G32: 1
A33: 7 | B33: 1 | C33: 3458.602174 | D33: 0 | E33: -75 | F33: FALSE | G33: 5
A34: 7 | B34: 2 | C34: 3458.602174 | D34: 102.0139995 | E34: -75 | F34: FALSE | G34: 4
A35: 7 | B35: 3 | C35: 3458.602174 | D35: 271.7708232 | E35: 155.5829454 | F35: FALSE | G35: 3
A36: 7 | B36: 4 | C36: 3458.602174 | D36: 157.3856328 | E36: 234.3558843 | F36: FALSE | G36: 2
A37: 7 | B37: 5 | C37: 3458.602174 | D37: 0 | E37: 234.3558843 | F37: FALSE | G37: 1
A38: 8 | B38: 1 | C38: 4019.565217 | D38: 0 | E38: -75 | F38: TRUE | G38: 5
A39: 8 | B39: 2 | C39: 4019.565217 | D39: 0 | E39: -75 | F39: TRUE | G39: 4
A40: 8 | B40: 3 | C40: 4019.565217 | D40: 120.4364438 | E40: 247.9902802 | F40: FALSE | G40: 3
A41: 8 | B41: 4 | C41: 4019.565217 | D41: 60.96408318 | E41: 276.3592183 | F41: FALSE | G41: 2
A42: 8 | B42: 5 | C42: 4019.565217 | D42: 0 | E42: 276.3592183 | F42: FALSE | G42: 1
A43: 9 | B43: 1 | C43: 4300 | D43: 0 | E43: 300 | F43: TRUE | G43: 0
A44: 9 | B44: 2 | C44: 4300 | D44: 0 | E44: 300 | F44: TRUE | G44: 0
A45: 9 | B45: 3 | C45: 4300 | D45: 0 | E45: 300 | F45: TRUE | G45: 0
A46: 9 | B46: 4 | C46: 4300 | D46: 0 | E46: 300 | F46: TRUE | G46: 0
A47: 9 | B47: 5 | C47: 4300 | D47: 0 | E47: 300 | F47: TRUE | G47: 0

Sheet MyCanoe700
A1: MyCanoe
A2: Find Offet Table at row | B2: 17 | M2: MyCanoe Basic Design Statistics
A3: Stations | B3: 9 | M3: Length Overall (LOA) | Q3: =(AP17-B17)/1000 -> 4.6 | R3: m
A4: Chines | B4: 5 | M4: Beam Overall (BOA) | Q4: =W19/500 -> 0.7 | R4: m
M5: Length Water Line (LWL) | Q5: =(AK20-G20)/1000 -> 4 | R5: m
M6: Beam Water Line (BWL) | Q6: =TREND(W19:W20,X19:X20,0)/500 -> 0.625 | R6: m
M7: Depth Water Line (DWL) | Q7: =-X21/1000 -> 0.075 | R7: m
M8: Amidships Freeboard | Q8: =X17/1000 -> 0.175 | R8: m
M9: Forward Freeboard | Q9: =D17/1000 -> 0.3 | R9: m
M10: Rear Freeboard | Q10: =AR17/1000 -> 0.3 | R10: m
A15: Station | B15: 1 | G15: 2 | L15: 3 | Q15: 4 | V15: 5 | AA15: 6 | AF15: 7 | AK15: 8 | AP15: 9
A16: Chine | B16: X | C16: Y | D16: Z | E16: Break | F16: Colour | G16: X | H16: Y | I16: Z | J16: Break | K16: Colour | L16: X | M16: Y | N16: Z | O16: Break | P16: Colour | Q16: X | R16: Y | S16: Z | T16: Break | U16: Colour | V16: X | W16: Y | X16: Z | Y16: Break | Z16: Colour | AA16: X | AB16: Y | AC16: Z | AD16: Break | AE16: Colour | AF16: X | AG16: Y | AH16: Z | AI16: Break | AJ16: Colour | AK16: X | AL16: Y | AM16: Z | AN16: Break | AO16: Colour | AP16: X | AQ16: Y | AR16: Z | AS16: Break | AT16: Colour
A17: Deck | B17: 0 | C17: 0 | D17: 300 | E17: TRUE | F17: 1 | G17: 300 | H17: 0 | I17: 276 | J17: FALSE | K17: 1 | L17: 900 | M17: 0 | N17: 234 | O17: FALSE | P17: 1 | Q17: 1300 | R17: 0 | S17: 211 | T17: FALSE | U17: 1 | V17: 2300 | W17: 0 | X17: 175 | Y17: FALSE | Z17: 1 | AA17: 3300 | AB17: 0 | AC17: 211 | AD17: FALSE | AE17: 1 | AF17: 3700 | AG17: 0 | AH17: 234 | AI17: FALSE | AJ17: 1 | AK17: 4300 | AL17: 0 | AM17: 276 | AN17: FALSE | AO17: 1 | AP17: 4600 | AQ17: 0 | AR17: 300 | AS17: TRUE | AT17: 0
A18: Sheer | B18: 0 | C18: 0 | D18: 300 | E18: TRUE | F18: 2 | G18: 300 | H18: 61 | I18: 276 | J18: FALSE | K18: 2 | L18: 900 | M18: 157 | N18: 234 | O18: FALSE | P18: 2 | Q18: 1300 | R18: 203 | S18: 211 | T18: FALSE | U18: 2 | V18: 2300 | W18: 250 | X18: 175 | Y18: FALSE | Z18: 2 | AA18: 3300 | AB18: 203 | AC18: 211 | AD18: FALSE | AE18: 2 | AF18: 3700 | AG18: 157 | AH18: 234 | AI18: FALSE | AJ18: 2 | AK18: 4300 | AL18: 61 | AM18: 276 | AN18: FALSE | AO18: 2 | AP18: 4600 | AQ18: 0 | AR18: 300 | AS18: TRUE | AT18: 0
A19: Chine | B19: 0 | C19: 0 | D19: 300 | E19: TRUE | F19: 3 | G19: 300 | H19: 120 | I19: 248 | J19: FALSE | K19: 3 | L19: 900 | M19: 272 | N19: 156 | O19: FALSE | P19: 3 | Q19: 1300 | R19: 322 | S19: 104 | T19: FALSE | U19: 3 | V19: 2300 | W19: 350 | X19: 25 | Y19: FALSE | Z19: 3 | AA19: 3300 | AB19: 322 | AC19: 104 | AD19: FALSE | AE19: 3 | AF19: 3700 | AG19: 272 | AH19: 156 | AI19: FALSE | AJ19: 3 | AK19: 4300 | AL19: 120 | AM19: 248 | AN19: FALSE | AO19: 3 | AP19: 4600 | AQ19: 0 | AR19: 300 | AS19: TRUE | AT19: 0
A20: Rabbet | B20: 0 | C20: 0 | D20: 300 | E20: TRUE | F20: 4 | G20: 300 | H20: 0 | I20: -75 | J20: TRUE | K20: 4 | L20: 900 | M20: 102 | N20: -75 | O20: FALSE | P20: 4 | Q20: 1300 | R20: 150 | S20: -75 | T20: FALSE | U20: 4 | V20: 2300 | W20: 200 | X20: -75 | Y20: FALSE | Z20: 4 | AA20: 3300 | AB20: 150 | AC20: -75 | AD20: FALSE | AE20: 4 | AF20: 3700 | AG20: 102 | AH20: -75 | AI20: FALSE | AJ20: 4 | AK20: 4300 | AL20: 0 | AM20: -75 | AN20: TRUE | AO20: 4 | AP20: 4600 | AQ20: 0 | AR20: 300 | AS20: TRUE | AT20: 0
A21: Centreline | B21: 0 | C21: 0 | D21: 300 | E21: TRUE | F21: 5 | G21: 300 | H21: 0 | I21: -75 | J21: TRUE | K21: 5 | L21: 900 | M21: 0 | N21: -75 | O21: FALSE | P21: 5 | Q21: 1300 | R21: 0 | S21: -75 | T21: FALSE | U21: 5 | V21: 2300 | W21: 0 | X21: -75 | Y21: FALSE | Z21: 5 | AA21: 3300 | AB21: 0 | AC21: -75 | AD21: FALSE | AE21: 5 | AF21: 3700 | AG21: 0 | AH21: -75 | AI21: FALSE | AJ21: 5 | AK21: 4300 | AL21: 0 | AM21: -75 | AN21: TRUE | AO21: 5 | AP21: 4600 | AQ21: 0 | AR21: 300 | AS21: TRUE | AT21: 0

Sheet MyCanoe700 Basic Calcs
B2: MyCanoe Basic Metrics
B3: Length Overall (LOA) | C3: =MyCanoe700!Q3 -> 4.6 | D3: m
B4: Beam Overall (BOA) | C4: =MyCanoe700!Q4 -> 0.7 | D4: m
B5: Length Water Line (LWL) | C5: =MyCanoe700!Q5 -> 4 | D5: m
B6: Beam Water Line (BWL) | C6: =MyCanoe700!Q6 -> 0.625 | D6: m
B7: Depth Water Line (DWL) | C7: =MyCanoe700!Q7 -> 0.075 | D7: m
B8: Amidships Freeboard | C8: =MyCanoe700!Q8 -> 0.175 | D8: m
B9: Forward Freeboard | C9: =MyCanoe700!Q9 -> 0.3 | D9: m
B10: Rear Freeboard | C10: =MyCanoe700!Q10 -> 0.3 | D10: m
B12: Basic Calculations (approximate)
B13: Mid-Section Area | C13: =C6*C7 -> 0.046875 | D13: m^2
B14: Plan Water Line Area | C14: =C6*C5*2/3 -> 1.666666667 | D14: m^2
B15: Displacement Volume | C15: =C5*C6*C7*2/3 -> 0.125 | D15: m^3
B16: Displacement Weight | C16: =C15*1025 -> 128.125 | D16: kg
B17: Prismatic Coefficient (cp) | C17: =C15/(C5*C6*C7) -> 0.6666666667
B18: Displacement Length Ratio (DLR) | C18: =C16/(C3/3.048)^3 -> 37.27393739
B19: Hull Speed | C19: =1.34*(C5*3.28)^0.5 -> 4.853686434 | D19: kt
B20: Design G Force | C20: 3.5 | D20: g
B21: Design Pressure | C21: =C20*C16*9.81/1000/C14 -> 2.639503125 | D21: kPa
B23: Bottom Plank Design
B24: Design Pressure (P) | C24: =C21 -> 2.639503125 | D24: kPa
B25: Span (L) | C25: =C6*1000*0+MyCanoe700!W20*2 -> 400 | D25: mm | E25: Sole
B26: Allowable Stress (S) | C26: 14000 | D26: kPa | E26: F14 Plywood
B27: Plank Thickness (t) | C27: =(C24*C25*C25/C26/2)^0.5 -> 3.883667725 | D27: mm | E27: t^2=P*L^2/2/S, ~fixed sides
B28: Design Plank Thickness (t) | C28: 4 | D28: mm
B29: Modulus of Elasticity (E) | C29: 10700000 | D29: kPa
B30: Moment of Inertia (I) | C30: =1000*C28^3/12 -> 5333.333333 | D30: mm^4
B31: Deflection (d) | C31: =C24*C25^4/384/C29/C30*1000 -> 3.083531688 | D31: mm | E31: d=P*L^4/384EI (2% max)
B32: Deflection Ratio | C32: =C25/C31 -> 129.7213846
B33: Maximum Concentrated Load | C33: =C26*C28*C28/1000000 -> 0.224 | D33: kN | E33: =S*t*t
B34: * Floor will need to be reinforced

Sheet MyCanoe700S
A1: MyCanoe (shortened)
A2: Find Offet Table at row | B2: 17 | M2: MyCanoe (shortened) Basic Design Statistics
A3: Stations | B3: 9 | M3: Length Overall (LOA) | Q3: =(AP17-B17)/1000 -> 4.3 | R3: m
A4: Chines | B4: 5 | M4: Beam Overall (BOA) | Q4: =W19/500 -> 0.7 | R4: m
M5: Length Water Line (LWL) | Q5: =(AK20-G20)/1000 -> 3.739130435 | R5: m
M6: Beam Water Line (BWL) | Q6: =TREND(W19:W20,X19:X20,0)/500 -> 0.625 | R6: m
M7: Depth Water Line (DWL) | Q7: =-X21/1000 -> 0.075 | R7: m
M8: Amidships Freeboard | Q8: =X17/1000 -> 0.175 | R8: m
M9: Forward Freeboard | Q9: =D17/1000 -> 0.3 | R9: m
M10: Rear Freeboard | Q10: =AR17/1000 -> 0.3 | R10: m
A15: Station | B15: 1 | G15: 2 | L15: 3 | Q15: 4 | V15: 5 | AA15: 6 | AF15: 7 | AK15: 8 | AP15: 9
A16: Chine | B16: X | C16: Y | D16: Z | E16: Break | F16: Colour | G16: X | H16: Y | I16: Z | J16: Break | K16: Colour | L16: X | M16: Y | N16: Z | O16: Break | P16: Colour | Q16: X | R16: Y | S16: Z | T16: Break | U16: Colour | V16: X | W16: Y | X16: Z | Y16: Break | Z16: Colour | AA16: X | AB16: Y | AC16: Z | AD16: Break | AE16: Colour | AF16: X | AG16: Y | AH16: Z | AI16: Break | AJ16: Colour | AK16: X | AL16: Y | AM16: Z | AN16: Break | AO16: Colour | AP16: X | AQ16: Y | AR16: Z | AS16: Break | AT16: Colour
A17: Deck | B17: 0 | C17: 0 | D17: 300 | E17: TRUE | F17: 1 | G17: 280.4347826 | H17: 0 | I17: 276.3592183 | J17: FALSE | K17: 1 | L17: 841.2108696 | M17: 0 | N17: 234.3686047 | O17: FALSE | P17: 1 | Q17: 1215.217391 | R17: 0 | S17: 210.8358953 | T17: FALSE | U17: 1 | V17: 2150 | W17: 0 | X17: 175 | Y17: FALSE | Z17: 1 | AA17: 3084.782609 | AB17: 0 | AC17: 210.8358953 | AD17: FALSE | AE17: 1 | AF17: 3458.602174 | AG17: 0 | AH17: 234.3558843 | AI17: FALSE | AJ17: 1 | AK17: 4019.565217 | AL17: 0 | AM17: 276.3592183 | AN17: FALSE | AO17: 1 | AP17: 4300 | AQ17: 0 | AR17: 300 | AS17: TRUE | AT17: 0
A18: Sheer | B18: 0 | C18: 0 | D18: 300 | E18: TRUE | F18: 2 | G18: 280.4347826 | H18: 60.96408318 | I18: 276.3592183 | J18: FALSE | K18: 2 | L18: 841.2108696 | M18: 157.3591678 | N18: 234.3686047 | O18: FALSE | P18: 2 | Q18: 1215.217391 | R18: 202.7410208 | S18: 210.8358953 | T18: FALSE | U18: 2 | V18: 2150 | W18: 250 | X18: 175 | Y18: FALSE | Z18: 2 | AA18: 3084.782609 | AB18: 202.7410208 | AC18: 210.8358953 | AD18: FALSE | AE18: 2 | AF18: 3458.602174 | AG18: 157.3856328 | AH18: 234.3558843 | AI18: FALSE | AJ18: 2 | AK18: 4019.565217 | AL18: 60.96408318 | AM18: 276.3592183 | AN18: FALSE | AO18: 2 | AP18: 4300 | AQ18: 0 | AR18: 300 | AS18: TRUE | AT18: 0
A19: Chine | B19: 0 | C19: 0 | D19: 300 | E19: TRUE | F19: 3 | G19: 280.4347826 | H19: 120.4364438 | I19: 247.9902802 | J19: FALSE | K19: 3 | L19: 841.2108696 | M19: 271.7370918 | N19: 155.6109304 | O19: FALSE | P19: 3 | Q19: 1215.217391 | R19: 321.6535632 | S19: 103.8389696 | T19: FALSE | U19: 3 | V19: 2150 | W19: 350 | X19: 25 | Y19: FALSE | Z19: 3 | AA19: 3084.782609 | AB19: 321.6535632 | AC19: 103.8389696 | AD19: FALSE | AE19: 3 | AF19: 3458.602174 | AG19: 271.7708232 | AH19: 155.5829454 | AI19: FALSE | AJ19: 3 | AK19: 4019.565217 | AL19: 120.4364438 | AM19: 247.9902802 | AN19: FALSE | AO19: 3 | AP19: 4300 | AQ19: 0 | AR19: 300 | AS19: TRUE | AT19: 0
A20: Rabbet | B20: 0 | C20: 0 | D20: 300 | E20: TRUE | F20: 4 | G20: 280.4347826 | H20: 0 | I20: -75 | J20: TRUE | K20: 4 | L20: 841.2108696 | M20: 101.9859995 | N20: -75 | O20: FALSE | P20: 4 | Q20: 1215.217391 | R20: 150 | S20: -75 | T20: FALSE | U20: 4 | V20: 2150 | W20: 200 | X20: -75 | Y20: FALSE | Z20: 4 | AA20: 3084.782609 | AB20: 150 | AC20: -75 | AD20: FALSE | AE20: 4 | AF20: 3458.602174 | AG20: 102.0139995 | AH20: -75 | AI20: FALSE | AJ20: 4 | AK20: 4019.565217 | AL20: 0 | AM20: -75 | AN20: TRUE | AO20: 4 | AP20: 4300 | AQ20: 0 | AR20: 300 | AS20: TRUE | AT20: 0
A21: Centreline | B21: 0 | C21: 0 | D21: 300 | E21: TRUE | F21: 5 | G21: 280.4347826 | H21: 0 | I21: -75 | J21: TRUE | K21: 5 | L21: 841.2108696 | M21: 0 | N21: -75 | O21: FALSE | P21: 5 | Q21: 1215.217391 | R21: 0 | S21: -75 | T21: FALSE | U21: 5 | V21: 2150 | W21: 0 | X21: -75 | Y21: FALSE | Z21: 5 | AA21: 3084.782609 | AB21: 0 | AC21: -75 | AD21: FALSE | AE21: 5 | AF21: 3458.602174 | AG21: 0 | AH21: -75 | AI21: FALSE | AJ21: 5 | AK21: 4019.565217 | AL21: 0 | AM21: -75 | AN21: TRUE | AO21: 5 | AP21: 4300 | AQ21: 0 | AR21: 300 | AS21: TRUE | AT21: 0

Sheet MyCanoe700S Basic Calcs
B2: MyCanoe (shortened) Basic Metrics
B3: Length Overall (LOA) | C3: =MyCanoe700S!Q3 -> 4.3 | D3: m
B4: Beam Overall (BOA) | C4: =MyCanoe700S!Q4 -> 0.7 | D4: m
B5: Length Water Line (LWL) | C5: =MyCanoe700S!Q5 -> 3.739130435 | D5: m
B6: Beam Water Line (BWL) | C6: =MyCanoe700S!Q6 -> 0.625 | D6: m
B7: Depth Water Line (DWL) | C7: =MyCanoe700S!Q7 -> 0.075 | D7: m
B8: Amidships Freeboard | C8: =MyCanoe700S!Q8 -> 0.175 | D8: m
B9: Forward Freeboard | C9: =MyCanoe700S!Q9 -> 0.3 | D9: m
B10: Rear Freeboard | C10: =MyCanoe700S!Q10 -> 0.3 | D10: m
B12: Basic Calculations (approximate)
B13: Mid-Section Area | C13: =C6*C7 -> 0.046875 | D13: m^2
B14: Plan Water Line Area | C14: =C6*C5*2/3 -> 1.557971014 | D14: m^2
B15: Displacement Volume | C15: =C5*C6*C7*2/3 -> 0.1168478261 | D15: m^3
B16: Displacement Weight | C16: =C15*1025 -> 119.7690217 | D16: kg
B17: Prismatic Coefficient (cp) | C17: =C15/(C5*C6*C7) -> 0.6666666667
B18: Displacement Length Ratio (DLR) | C18: =C16/(C3/3.048)^3 -> 42.65638265
B19: Hull Speed | C19: =1.34*(C5*3.28)^0.5 -> 4.69274578 | D19: kt
B20: Design G Force | C20: 3.5 | D20: g
B21: Design Pressure | C21: =C20*C16*9.81/1000/C14 -> 2.639503125 | D21: kPa
B23: Bottom Plank Design
B24: Design Pressure (P) | C24: =C21 -> 2.639503125 | D24: kPa
B25: Span (L) | C25: =C6*1000*0+MyCanoe700!W20*2 -> 400 | D25: mm | E25: Sole
B26: Allowable Stress (S) | C26: 14000 | D26: kPa | E26: F14 Plywood
B27: Plank Thickness (t) | C27: =(C24*C25*C25/C26/2)^0.5 -> 3.883667725 | D27: mm | E27: t^2=P*L^2/2/S, ~fixed sides
B28: Design Plank Thickness (t) | C28: 4 | D28: mm
B29: Modulus of Elasticity (E) | C29: 10700000 | D29: kPa
B30: Moment of Inertia (I) | C30: =1000*C28^3/12 -> 5333.333333 | D30: mm^4
B31: Deflection (d) | C31: =C24*C25^4/384/C29/C30*1000 -> 3.083531688 | D31: mm | E31: d=P*L^4/384EI (2% max)
B32: Deflection Ratio | C32: =C25/C31 -> 129.7213846
B33: Maximum Concentrated Load | C33: =C26*C28*C28/1000000 -> 0.224 | D33: kN | E33: =S*t*t
B34: * Floor will need to be reinforced
